bitfinex/quotes_ETHUSD_20250620
["timestamp","ask_amount","ask_price","bid_price","bid_amount"]
[1750423434855,0.36589445,2556.7,2556.4,3.91173517]
[1750423436656,0.36589445,2556.6,2556.4,3.91173517]
[1750423436830,6.73764282,2556.8,2556.4,3.91173517]
[1750423437032,6.73764282,2556.6,2556.3,3.91189247]
[1750423437539,6.73764282,2556.6,2556.4,3.91174649]
[1750423437958,6.73764282,2556.6,2556.4,3.9117174]
[1750423438180,6.73764282,2556.6,2556.3,3.91184769]
[1750423438468,6.73764282,2556.4,2556.0,3.91226512]
[1750423438765,6.73764282,2556.1,2555.8,3.91266559]
[1750423439943,6.73764282,2556.1,2555.8,3.91264224]
[1750423440172,6.73764282,2556.1,2555.8,3.91266922]
[1750423440374,6.73764282,2556.1,2555.8,3.91252481]
[1750423440557,6.73764282,2556.1,2555.9,3.91247443]
[1750423441969,6.73764282,2556.1,2556.0,3.91236306]
[1750423442175,0.7975,2556.4,2556.1,3.91209846]
[1750423442469,0.36633899,2556.3,2556.1,3.91209846]
[1750423442771,0.36633899,2556.2,2556.1,3.91221]
[1750423443373,0.36633899,2556.3,2556.1,3.91221]
[1750423443668,0.36633899,2556.2,2556.1,3.91221]
[1750423444160,0.36622809,2556.3,2556.1,3.91221]
[1750423444380,0.36622804,2556.2,2556.1,3.91221]
[1750423444671,0.36622847,2556.2,2556.1,3.91221]
[1750423445235,0.73241208,2556.2,2556.1,4.7766969]
[1750423445436,0.73236455,2556.2,2556.1,4.7766969]
[1750423445652,0.36618094,2556.2,2556.1,4.7766969]
[1750423445852,0.36618094,2556.2,2556.1,4.81581337]
[1750423446060,7.54284282,2556.9,2556.6,3.91141206]
[1750423446252,0.95196786,2556.8,2556.6,3.91141206]
[1750423446472,0.73227104,2556.7,2556.6,3.91141206]
[1750423447455,0.73228894,2556.7,2556.5,3.91150611]
[1750423447686,0.73228894,2556.6,2556.5,3.91150611]
[1750423448060,0.73225652,2556.6,2556.5,3.91150611]
[1750423448567,0.73225026,2556.6,2556.5,3.91150611]
[1750423448901,0.73224886,2556.6,2556.5,4.77530607]
[1750423449591,0.36612445,2556.6,2556.5,4.77530607]
[1750423450110,6.73764282,2557.0,2556.6,3.9113844]
[1750423450261,0.95184636,2556.9,2556.6,3.9113844]
[1750423450460,0.73220318,2556.8,2556.6,3.9113844]
[1750423450676,0.36610159,2556.7,2556.5,3.91148343]
[1750423450880,0.36610159,2556.6,2556.5,4.38413177]
[1750423451806,6.73764282,2557.0,2556.7,3.91122366]
[1750423452020,0.95188855,2556.9,2556.6,3.91141881]
[1750423452328,7.46986478,2556.8,2556.4,4.7266229]
[1750423452523,0.73225099,2556.7,2556.4,4.7266229]
[1750423452730,0.36612541,2556.6,2556.4,4.7266229]
[1750423452894,0.36612541,2556.5,2556.4,4.7266229]
[1750423453095,6.73764282,2556.8,2556.5,3.91159053]
[1750423453321,0.36610411,2556.7,2556.5,3.91159053]
[1750423453627,0.36610411,2556.6,2556.4,4.72666169]
[1750423453782,0.36610411,2556.5,2556.4,4.72666169]
[1750423454308,6.73764282,2556.8,2556.4,4.72666169]
[1750423454513,0.36613235,2556.7,2556.4,4.72666169]
[1750423454682,0.36613235,2556.6,2556.4,4.72666169]
[1750423454877,0.36613235,2556.5,2556.4,3.91166169]
[1750423455694,0.36610571,2556.5,2556.4,3.91166169]
[1750423455900,0.36610318,2556.5,2556.4,3.91166169]
[1750423456321,6.73764282,2556.8,2556.5,3.91158099]
[1750423456631,0.36610254,2556.7,2556.5,3.91158099]
[1750423456797,0.36610254,2556.6,2556.5,3.91158099]
[1750423457529,0.36612893,2556.6,2556.5,3.91158099]
[1750423458212,0.36609908,2556.6,2556.5,3.91158099]
[1750423458830,0.36612572,2556.6,2556.5,3.91158099]
[1750423459702,0.36610349,2556.6,2556.5,3.91158099]
[1750423460412,0.36610316,2556.6,2556.3,3.91184218]
[1750423460606,0.8168,2556.7,2556.3,3.91184218]
[1750423460823,0.36610733,2556.6,2556.3,3.91184218]
[1750423461131,0.36613915,2556.5,2556.3,3.91184218]
[1750423461299,0.8168,2556.7,2556.3,3.91184218]
[1750423461499,0.36611609,2556.6,2556.3,3.91184218]
[1750423461830,0.36611609,2556.5,2556.3,3.91184218]
[1750423462134,0.8168,2556.7,2556.3,3.91184218]
[1750423462515,0.36611822,2556.6,2556.3,3.91184218]
[1750423462715,0.36611822,2556.5,2556.2,3.91205014]
[1750423462945,6.73764282,2556.6,2556.3,3.91188947]
[1750423463118,0.36612109,2556.5,2556.3,3.91188947]
[1750423463310,6.73764282,2556.6,2556.3,3.91188947]
[1750423463511,0.36612751,2556.5,2556.3,3.91188947]
[1750423463706,6.73764282,2556.6,2556.3,3.91188947]
[1750423463917,0.36610735,2556.5,2556.3,3.91188947]
[1750423464223,6.73764282,2556.6,2556.3,3.91188947]
[1750423464519,0.36614155,2556.5,2556.3,3.91188947]
[1750423464720,6.73764282,2556.6,2556.3,3.91188947]
[1750423464934,0.36614066,2556.5,2556.3,3.91188947]
[1750423465136,6.73764282,2556.6,2556.3,3.91188947]
[1750423465430,0.36613873,2556.5,2556.3,3.91188947]
[1750423465637,6.73764282,2556.6,2556.2,3.91197074]
[1750423465932,0.36611187,2556.5,2556.3,3.91176268]
[1750423466126,6.73764282,2556.6,2556.4,3.91174307]
[1750423466330,0.3661097,2556.5,2556.4,3.91174307]
[1750423467129,0.3661097,2556.5,2556.3,3.91183177]
[1750423467434,6.73764282,2556.6,2556.3,3.91183177]
[1750423467634,0.36611416,2556.5,2556.3,3.91183177]
[1750423467931,6.73764282,2556.6,2556.4,3.91173238]
[1750423468136,0.36611245,2556.5,2556.4,3.91173238]
[1750423469015,0.36617149,2556.5,2556.4,3.91173238]
[1750423470736,0.36636106,2556.5,2556.4,3.91173238]
[1750423470930,0.73272212,2556.5,2556.4,3.91173238]
[1750423471442,0.73278,2556.5,2556.4,3.91173238]
[1750423471951,0.8168,2556.7,2556.5,3.91152063]
[1750423472146,0.73277908,2556.6,2556.5,3.91152063]
[1750423473025,0.73277928,2556.6,2556.5,3.91152063]
[1750423473426,0.73277952,2556.6,2556.5,3.91152063]
[1750423474147,0.73283718,2556.6,2556.5,3.91152063]
[1750423474332,0.36641859,2556.6,2556.5,3.91152063]
[1750423474537,0.73366237,2556.6,2556.5,3.91152063]
[1750423474732,0.36683176,2556.6,2556.5,3.91152063]
[1750423474948,0.73366333,2556.6,2556.5,3.91152063]
[1750423475249,0.73366322,2556.6,2556.5,3.91152063]
[1750423475613,0.73366372,2556.6,2556.5,3.91152063]
[1750423475828,0.73366362,2556.6,2556.5,3.91152063]
[1750423476129,0.36683216,2556.6,2556.5,3.91152063]
[1750423476534,0.73366435,2556.6,2556.5,3.91152063]
[1750423476735,0.73366435,2556.6,2556.5,5.46044414]
[1750423476974,0.73363776,2556.6,2556.5,5.46044414]
[1750423477171,0.36683219,2556.6,2556.5,5.46044414]
[1750423477366,0.73357558,2556.6,2556.5,5.46044414]
[1750423477565,0.366789,2556.6,2556.5,5.46044414]
[1750423477734,0.73357826,2556.6,2556.5,5.46044414]
[1750423478269,0.36678926,2556.6,2556.5,5.46044414]
[1750423478461,0.73358161,2556.6,2556.5,5.46044414]
[1750423480366,0.73353958,2556.6,2556.5,5.46044414]
[1750423480573,3.91070106,2557.1,2556.6,3.91139161]
[1750423480766,0.58679547,2557.0,2556.6,3.91139161]
[1750423480968,0.58679547,2556.9,2556.6,3.91139161]
[1750423481161,0.58679547,2556.8,2556.6,3.91139161]
[1750423481372,0.36674717,2556.7,2556.6,3.91139161]
[1750423482243,0.36674717,2556.7,2556.6,4.77034741]
[1750423483381,0.36674717,2556.7,2556.6,4.80945806]
[1750423484196,0.36674717,2556.7,2556.6,4.77034741]
[1750423484197,0.36661638,2556.7,2556.6,4.77034741]
[1750423484789,3.91068934,2557.1,2556.6,4.77034741]
[1750423485300,3.91068006,2557.1,2556.6,4.77034741]
[1750423485459,3.91091463,2557.0,2556.6,0.8589558]
[1750423485819,3.91091463,2557.0,2556.5,4.6781103]
[1750423486414,10.0,2557.2,2556.6,3.91134345]
[1750423486619,3.91083094,2557.1,2556.6,3.91134345]
[1750423486819,6.73764282,2557.1,2556.5,0.7666]
[1750423487038,6.73764282,2556.9,2556.1,0.7948]
[1750423487318,10.6490079,2556.7,2556.3,3.91190388]
[1750423488197,6.73764282,2556.7,2556.3,3.91190388]
[1750423488406,6.73764282,2556.7,2556.4,3.91174714]
[1750423488607,3.91116263,2556.8,2556.4,3.91174714]
[1750423489120,3.91105203,2556.9,2556.5,3.91157555]
[1750423489327,11.39941691,2557.0,2556.5,3.91157555]
[1750423489630,3.91106009,2556.9,2556.5,3.91157555]
[1750423490388,7.48844282,2557.0,2556.5,3.91157555]
[1750423491033,3.91099048,2556.9,2556.5,3.91157555]
[1750423491240,3.91114722,2556.8,2556.3,3.91178778]
[1750423491440,3.9113553,2556.7,2556.2,4.99139803]
[1750423491628,6.73764282,2556.8,2556.1,4.70691834]
[1750423491629,7.51514282,2556.6,2556.1,4.70691834]
[1750423492441,7.51514282,2556.6,2556.0,3.9123562]
[1750423492442,6.73764282,2556.4,2556.0,4.72752414]
[1750423492843,10.6494126,2556.4,2556.0,4.72752414]
[1750423493230,10.6494126,2556.4,2555.8,3.91259599]
[1750423493231,6.73764282,2556.4,2555.8,0.7734]
[1750423493450,6.73764282,2555.9,2555.7,1.82679063]
[1750423494244,10.65018882,2555.9,2555.7,1.82679063]
[1750423494445,4.68926922,2555.8,2555.7,1.82679063]
[1750423495321,0.7766,2555.8,2555.7,1.82679063]
[1750423495934,4.68926922,2555.8,2555.7,1.82679063]
[1750423496440,1.14332186,2555.8,2555.7,1.82679063]
[1750423497344,0.36672186,2555.8,2555.7,1.82679063]
[1750423498042,0.36555572,2555.8,2555.7,1.82679063]
[1750423499641,10.0,2556.2,2555.9,3.91250857]
[1750423499829,6.73764282,2556.4,2556.0,3.91236306]
[1750423499830,0.36538306,2556.1,2556.0,3.91236306]
[1750423500213,0.36536348,2556.1,2556.0,3.91236306]
[1750423500641,10.0,2556.5,2556.1,3.9120911]
[1750423500830,0.3653521,2556.4,2556.0,4.70410243]
[1750423501033,0.36533932,2556.3,2556.2,3.91205543]
[1750423501235,0.36533932,2556.3,2556.1,3.9121728]
[1750423501436,0.36533932,2556.2,2556.0,0.7918]
[1750423501633,0.36533932,2556.1,2556.0,0.7918]
[1750423501949,0.36533681,2556.1,2556.0,0.7918]
[1750423502154,6.73764282,2556.4,2556.1,3.91220272]
[1750423502450,0.36532575,2556.3,2556.0,4.70408984]
[1750423502649,0.36532575,2556.2,2556.1,3.91221]
[1750423502828,0.36532575,2556.4,2556.1,3.91221]
[1750423503028,0.36532575,2556.3,2556.1,3.91221]
[1750423503223,0.36533572,2556.2,2556.1,3.91221]
[1750423503450,14.68031201,2556.6,2556.1,4.77384335]
[1750423503451,4.68031201,2556.6,2556.1,4.77384335]
[1750423503629,0.36532701,2556.5,2556.1,3.91221]
[1750423503812,0.36532701,2556.4,2556.1,3.91221]
[1750423504019,0.36532701,2556.3,2556.1,3.91221]
[1750423504339,4.68031201,2556.6,2556.2,3.91204492]
[1750423504539,0.3652919,2556.5,2556.2,3.91204492]
[1750423504727,0.36528967,2556.4,2556.2,3.91204492]
[1750423505053,0.36528967,2556.3,2556.2,3.91204492]
[1750423505348,3.40925032,2556.8,2556.3,0.7875]
[1750423505550,0.36526115,2556.7,2556.6,3.91143011]
[1750423505711,0.36524789,2556.7,2556.6,3.91143011]
[1750423505915,3.40925032,2556.8,2556.6,3.91143011]
[1750423506112,0.36528621,2556.7,2556.6,3.91143011]
[1750423506432,0.36528621,2556.7,2556.4,3.91168173]
[1750423506626,3.40925032,2556.8,2556.4,3.91168173]
[1750423506627,0.36528621,2556.6,2556.5,0.46991817]
[1750423506845,0.36528241,2556.6,2556.5,3.91157476]
[1750423507151,0.36528241,2556.6,2556.4,3.91167643]
[1750423507152,0.36528241,2556.6,2556.4,3.9116688]
[1750423507357,3.40925032,2556.8,2556.4,3.9116688]
[1750423507520,0.36526129,2556.7,2556.4,3.9116688]
[1750423507721,0.36526129,2556.6,2556.4,3.9116688]
[1750423507920,3.40925032,2556.8,2556.4,3.9116688]
[1750423508145,0.36525816,2556.7,2556.4,3.9116688]
[1750423508344,0.3652581,2556.6,2556.4,3.9116688]
[1750423508545,3.40925032,2556.8,2556.5,4.69847773]
[1750423509059,0.36526774,2556.7,2556.5,0.7869]
[1750423509260,0.36526774,2556.6,2556.3,4.72313286]
[1750423509563,3.40925032,2556.8,2556.4,3.91173752]
[1750423509760,0.36527164,2556.7,2556.3,4.7231366]
[1750423509924,7.3205105,2556.8,2556.3,4.7231366]
[1750423510124,0.3652855,2556.7,2556.3,4.7231366]
[1750423510454,0.3652855,2556.6,2556.3,4.7231366]
[1750423510655,4.68855744,2556.7,2556.2,3.91197516]
[1750423510857,0.36526934,2556.6,2556.3,3.91189076]
[1750423511168,2.65186142,2556.7,2556.3,3.91189076]
[1750423511697,0.36530658,2556.6,2556.3,3.91189076]
[1750423511842,0.7772,2556.7,2556.3,3.91189076]
[1750423512024,0.3652889,2556.6,2556.3,3.91189076]
[1750423512354,4.68850336,2556.7,2556.2,3.91197429]
[1750423512553,0.36528682,2556.6,2556.2,3.91197429]
[1750423512758,0.36528682,2556.5,2556.2,3.91197429]
[1750423513059,6.56313701,2556.7,2556.2,3.91197429]
[1750423513257,0.36531728,2556.6,2556.2,3.91197429]
[1750423513465,4.27694377,2556.5,2556.1,0.7581]
[1750423513763,3.91176653,2556.4,2556.0,3.91229429]
[1750423513968,13.30086961,2556.7,2556.2,3.91197751]
[1750423514265,0.36532778,2556.6,2556.2,3.91197751]
[1750423514471,0.36532778,2556.5,2556.2,3.91197751]
[1750423514634,3.91146155,2556.6,2556.2,3.91197751]
[1750423514835,0.36532617,2556.5,2556.1,3.91212204]
[1750423515035,4.68857233,2556.7,2556.2,3.91205029]
[1750423515235,0.3653718,2556.6,2556.2,3.91205029]
[1750423515452,0.3653718,2556.5,2556.2,3.91205029]
[1750423515647,6.72724343,2556.7,2556.2,3.91205029]
[1750423515864,0.36537195,2556.6,2556.2,3.91205029]
[1750423516071,0.36537195,2556.5,2556.2,3.91205029]
[1750423516264,4.68857685,2556.7,2556.2,3.91205029]
[1750423516476,6.72724427,2556.7,2556.2,3.91205029]
[1750423516650,3.91171051,2556.5,2556.0,3.91229916]
[1750423516851,3.91171051,2556.5,2555.9,4.72875417]
[1750423517152,3.91147833,2556.6,2556.1,3.9121087]
[1750423517340,4.27698458,2556.5,2556.1,3.9121087]
[1750423517538,3.91160595,2556.5,2556.1,3.9121087]
[1750423518373,3.91153774,2556.6,2556.2,3.91205471]
[1750423518573,0.36538495,2556.5,2556.2,3.91205471]
[1750423518739,0.36538495,2556.4,2556.2,3.91205471]
[1750423518939,3.91153774,2556.6,2556.2,3.91205471]
[1750423519239,0.36543904,2556.5,2556.2,3.91205471]
[1750423519578,0.36543904,2556.4,2556.2,3.91205471]
[1750423519750,3.91153774,2556.6,2556.2,3.91205471]
[1750423519951,0.36549933,2556.5,2556.2,3.91205471]
[1750423520272,0.36549933,2556.4,2556.1,3.91218498]
[1750423520472,3.9115149,2556.6,2556.1,3.91218498]
[1750423520672,0.36553903,2556.5,2556.2,3.91205334]
[1750423520884,0.36557883,2556.4,2556.2,3.91205334]
[1750423521088,13.46488383,2556.7,2556.2,3.91205334]
[1750423521272,0.79056048,2556.6,2556.2,3.91205334]
[1750423521453,0.36557552,2556.5,2556.4,3.91175089]
[1750423521653,0.36557552,2556.5,2556.3,4.67394023]
[1750423521853,3.40925032,2556.8,2556.3,4.67394023]
[1750423522153,0.36557565,2556.7,2556.4,3.9117204]
[1750423522354,0.36557565,2556.6,2556.4,3.9117204]
[1750423522555,3.40925032,2556.8,2556.3,4.67394023]
[1750423522556,0.36557565,2556.5,2556.3,4.67391195]
[1750423522750,7.3204052,2556.8,2556.3,4.67391195]
[1750423522956,0.36555249,2556.7,2556.4,3.91173582]
[1750423523192,0.36555249,2556.6,2556.5,3.91159788]
[1750423523885,0.36553305,2556.6,2556.5,3.91159788]
[1750423524078,0.36553305,2556.6,2556.4,3.91172401]
[1750423524279,0.36553305,2556.5,2556.4,3.91172401]
[1750423524473,0.36553305,2556.7,2556.4,3.91172401]
[1750423524692,0.36553305,2556.6,2556.4,3.91172401]
[1750423524889,0.36553305,2556.5,2556.3,4.67392206]
[1750423525099,7.32048157,2556.8,2556.3,4.67392206]
[1750423525297,0.36560958,2556.7,2556.3,4.67392206]
[1750423525484,0.36560958,2556.6,2556.4,3.91174255]
[1750423525689,0.36560958,2556.5,2556.4,3.91174255]
[1750423526104,0.36560958,2556.5,2556.3,4.67391562]
[1750423526406,7.32048157,2556.8,2556.4,3.91171695]
[1750423526602,0.36577508,2556.7,2556.4,3.91171695]
[1750423526765,0.36601554,2556.6,2556.3,4.67391522]
[1750423526960,0.36601554,2556.5,2556.3,4.67391522]
[1750423527226,0.36601554,2556.4,2556.2,3.91198631]
[1750423527499,3.91146389,2556.6,2556.2,3.91198631]
[1750423527701,0.36602624,2556.5,2556.2,3.91198631]
[1750423528002,0.36602624,2556.4,2556.2,3.91197901]
[1750423528199,3.91134517,2556.7,2556.2,3.91197901]
[1750423528502,4.27747837,2556.6,2556.2,3.91197901]
[1750423528688,0.36602548,2556.5,2556.2,3.91197901]
[1750423529004,0.36602548,2556.4,2556.2,3.91197901]
[1750423529209,0.36602548,2556.3,2556.2,3.91197901]
[1750423530394,0.36644024,2556.3,2556.2,3.91197901]
[1750423530991,0.366545,2556.3,2556.2,3.91197901]
[1750423531187,0.366545,2556.3,2556.1,3.91220078]
[1750423531397,4.72735678,2556.5,2556.0,3.91222087]
[1750423531594,0.36655106,2556.4,2556.1,3.91219698]
[1750423531774,0.36655106,2556.3,2556.1,3.91219698]
[1750423531974,0.36656864,2556.2,2556.1,3.91219698]
[1750423532508,0.8157,2556.5,2556.2,3.91202951]
[1750423532712,0.36656797,2556.4,2556.2,3.91202951]
[1750423532907,0.8157,2556.5,2556.2,3.91202951]
[1750423533113,0.36656888,2556.4,2556.2,3.91202951]
[1750423533312,0.36656888,2556.3,2556.2,3.91202951]
[1750423533523,0.36656888,2556.3,2556.1,3.91213996]
[1750423533810,0.36677575,2556.2,2556.1,3.91213996]
[1750423534112,0.36677575,2556.2,2555.9,0.7988]
[1750423534317,0.36677575,2556.1,2556.0,3.91235505]
[1750423534620,0.36680183,2556.1,2555.7,6.5244209]
[1750423534827,0.36680183,2556.0,2555.7,6.5244209]
[1750423534980,0.36681679,2555.9,2555.8,3.9126689]
[1750423535314,0.36681691,2555.9,2555.8,3.9126689]
[1750423535616,4.72739041,2556.5,2556.0,3.91230206]
[1750423535788,0.95369178,2556.4,2556.0,3.91230206]
[1750423535991,0.73360267,2556.3,2556.1,3.91219358]
[1750423536292,10.8183,2556.7,2556.3,3.91185519]
[1750423536491,0.95363498,2556.6,2556.2,3.91194765]
[1750423536732,0.95363498,2556.5,2556.2,3.9120564]
[1750423537008,0.73356531,2556.4,2556.1,4.69703176]
[1750423537311,0.36671519,2556.3,2556.1,4.69703176]
[1750423537511,0.36671247,2556.2,2556.1,4.69703176]
[1750423538311,0.36671462,2556.2,2556.1,0.7849]
[1750423538507,0.36672174,2556.2,2556.1,0.7849]
[1750423538815,0.36672174,2556.2,2556.0,3.91226565]
[1750423539014,0.36672174,2556.1,2556.0,3.91226565]
[1750423540511,0.36672174,2556.1,2556.0,4.77063331]
[1750423540921,0.36668105,2556.1,2556.0,4.77063331]
[1750423541090,0.7692,2556.5,2556.1,3.9120847]
[1750423541293,0.3666681,2556.4,2556.2,3.91204273]
[1750423541487,0.36666988,2556.3,2556.1,3.91215206]
[1750423541688,0.36666988,2556.2,2556.0,4.77065308]
[1750423541909,0.36666988,2556.1,2556.0,4.77065308]
[1750423542978,0.36663748,2556.1,2556.0,4.77065308]
[1750423543285,0.36663748,2556.1,2556.0,0.85836766]
[1750423543486,0.36663748,2556.1,2556.0,4.77073072]
[1750423544014,0.36663956,2556.1,2556.0,4.77073072]
[1750423544513,0.3666379,2556.1,2556.0,4.77073072]
[1750423545936,0.36661371,2556.1,2556.0,0.85836766]
[1750423546217,0.36661371,2556.1,2556.0,3.9514799]
[1750423546590,10.827,2556.7,2556.3,3.91178062]
[1750423546819,0.95312074,2556.6,2556.4,3.91174881]
[1750423547122,0.36658489,2556.5,2556.4,3.91174881]
[1750423547321,10.827,2556.7,2556.4,3.91174881]
[1750423547527,10.827,2556.7,2556.2,3.91201661]
[1750423547528,0.95311404,2556.6,2556.3,3.91183291]
[1750423547721,10.827,2556.7,2556.3,3.91183291]
[1750423547722,0.36658238,2556.5,2556.3,3.91183291]
[1750423547902,0.36658238,2556.4,2556.3,3.91183291]
[1750423548503,0.36658014,2556.4,2556.3,3.91183291]
[1750423548829,0.36657821,2556.4,2556.3,3.91183291]
[1750423549628,0.36657821,2556.4,2556.3,5.52653892]
[1750423549832,3.40925032,2556.8,2556.7,3.91129189]
[1750423549993,3.77576039,2556.8,2556.7,3.91129189]
[1750423550721,3.77576039,2556.8,2556.7,4.72949189]
[1750423551027,3.77576039,2556.8,2556.7,4.76860226]
[1750423551195,0.8146,2557.5,2557.1,3.91060264]
[1750423551392,0.58531725,2557.4,2557.1,3.91060264]
[1750423551598,0.36604448,2557.3,2557.1,3.91060264]
[1750423551816,0.36604448,2557.2,2557.1,3.91060264]
[1750423552124,0.36604448,2557.2,2557.1,4.76790828]
[1750423552125,0.36604323,2557.2,2557.1,4.76790828]
[1750423552420,0.36604323,2557.2,2557.1,5.6357795]
[1750423552630,4.72440151,2557.7,2557.2,3.91044255]
[1750423552788,0.95119248,2557.6,2557.2,3.91044255]
[1750423552986,0.95119248,2557.6,2557.1,4.72879441]
[1750423552987,0.36598557,2557.5,2557.1,4.72879441]
[1750423553224,0.36598557,2557.4,2557.1,4.72879441]
[1750423553409,0.36598557,2557.3,2557.1,4.72879441]
[1750423553607,0.36598557,2557.2,2557.1,4.72879441]
[1750423553807,0.36555683,2557.2,2557.1,5.59276581]
[1750423554426,0.36555683,2557.2,2557.1,1.6821714]
[1750423554635,0.36555683,2557.2,2557.0,3.91077402]
[1750423554796,3.91007469,2557.5,2557.0,3.91077402]
[1750423555629,0.36554582,2557.4,2557.0,3.91077402]
[1750423555825,3.91000087,2557.6,2557.1,3.91066447]
[1750423556126,0.36555435,2557.5,2557.1,3.91066447]
[1750423556322,0.36555435,2557.4,2557.1,3.91066447]
[1750423556515,0.36555435,2557.3,2557.1,3.91066447]
[1750423556719,3.91000087,2557.6,2557.1,3.91066447]
[1750423556898,0.36526865,2557.5,2557.1,3.91066447]
[1750423557098,0.36526865,2557.4,2557.1,3.91066447]
[1750423557309,0.36526865,2557.3,2557.1,3.91066447]
[1750423557509,3.91000087,2557.6,2557.1,4.7698889]
[1750423557710,0.36526797,2557.5,2557.1,4.7698889]
[1750423558031,0.36526714,2557.4,2557.1,0.85922443]
[1750423558204,0.36526174,2557.3,2557.2,3.91039234]
[1750423558409,0.36525844,2557.5,2557.2,3.91039234]
[1750423558708,4.72444048,2557.7,2557.2,3.91039234]
[1750423559029,0.36517504,2557.6,2557.2,3.91039234]
[1750423559193,0.36517504,2557.5,2557.3,3.91037208]
[1750423559398,0.36517504,2557.4,2557.2,3.91045732]
[1750423559598,3.90992871,2557.6,2557.2,3.91045732]
[1750423559913,0.36493608,2557.5,2557.2,3.91045732]
[1750423560318,0.36493608,2557.4,2557.2,3.91045732]
[1750423560517,1.639,2557.8,2557.2,0.78212276]
[1750423560699,0.7638,2558.0,2557.3,11.46435205]
[1750423560900,0.36479915,2557.9,2557.7,3.90966482]
[1750423561100,3.90915132,2558.1,2557.6,3.9098297]
[1750423561331,0.36448002,2558.0,2557.6,3.9098297]
[1750423561511,4.9314753,2558.1,2557.7,3.90976082]
[1750423561711,0.36448262,2558.0,2557.8,3.90959995]
[1750423562228,3.90916779,2558.1,2557.7,0.8073]
[1750423562738,3.90921668,2558.1,2557.7,0.8073]
[1750423563838,3.90934049,2558.0,2557.2,4.69256482]
[1750423564008,3.90970284,2557.8,2557.3,4.68379052]
[1750423564718,3.91031645,2557.4,2557.0,0.7858]
[1750423564921,3.91040009,2557.3,2556.8,3.91104848]
[1750423565122,0.7917,2557.4,2557.0,3.91073093]
[1750423565316,3.91009584,2557.5,2557.0,3.91073093]
[1750423565837,3.91009584,2557.5,2557.1,3.91067976]
[1750423566725,0.7917,2557.6,2556.9,3.91098595]
[1750423567301,3.9101564,2557.5,2556.9,3.91092362]
[1750423567501,3.9101564,2557.5,2557.0,3.91068258]
[1750423568039,3.91023695,2557.4,2557.0,3.91068258]
[1750423568338,3.91011366,2557.5,2556.9,5.45881843]
[1750423568539,3.91030075,2557.4,2556.9,5.45881843]
[1750423568935,4.70168161,2557.6,2557.0,3.91081057]
[1750423569120,3.91014222,2557.5,2557.0,3.91075539]
[1750423569327,3.91006842,2557.5,2557.0,3.91083033]
[1750423570138,5.72662614,2557.6,2557.1,3.91056695]
[1750423570321,0.36482467,2557.5,2557.1,3.91056695]
[1750423570529,0.36482467,2557.5,2557.2,3.91045216]
[1750423570832,0.36482467,2557.5,2557.0,3.94982233]
[1750423570833,0.36482467,2557.5,2557.3,3.91036757]
[1750423571143,1.638,2557.7,2557.4,3.91022131]
[1750423571314,0.36484036,2557.6,2557.4,3.91022131]
[1750423571514,1.638,2557.7,2557.5,3.910017]
[1750423572104,1.638,2557.7,2557.3,3.91030882]
[1750423572105,1.638,2557.7,2557.4,3.91015823]
[1750423572434,1.638,2557.7,2557.3,3.9102564]
[1750423572932,0.36508839,2557.6,2557.3,3.9102564]
[1750423573140,0.36508839,2557.6,2557.4,3.91019548]
[1750423574553,1.638,2557.7,2557.4,3.91019548]
[1750423574845,0.36514318,2557.6,2557.3,3.91028359]
[1750423575144,0.36514318,2557.6,2557.4,3.91014756]
[1750423575707,0.36514318,2557.6,2557.3,3.91028826]
[1750423575901,1.638,2557.7,2557.3,3.91028826]
[1750423576134,0.36549405,2557.6,2557.3,3.91028826]
[1750423576443,0.36549405,2557.5,2557.2,4.72253929]
[1750423576610,5.54778758,2557.7,2557.2,4.72253929]
[1750423576950,0.36552234,2557.6,2557.3,3.91036592]
[1750423577107,0.36552234,2557.5,2557.3,3.91036592]
[1750423577306,5.54778758,2557.7,2557.3,3.91036592]
[1750423577507,0.36554985,2557.6,2557.3,3.91036592]
[1750423577808,0.36554985,2557.5,2557.3,3.91036592]
[1750423578006,0.36554985,2557.4,2557.3,3.91036592]
[1750423579344,0.36554985,2557.4,2557.3,4.77366316]
[1750423579552,0.36554985,2557.4,2557.3,4.81276377]
[1750423579922,3.90964762,2557.8,2557.4,3.91019874]
[1750423580255,1.638,2557.9,2557.5,3.91000518]
[1750423580407,0.36600363,2557.8,2557.3,3.94936797]
[1750423580611,0.36600363,2557.7,2557.3,3.91031376]
[1750423580829,0.36600363,2557.6,2557.4,3.91021594]
[1750423581144,0.36600363,2557.5,2557.4,3.91021594]
[1750423581641,0.36600363,2557.5,2557.2,4.72255625]
[1750423581847,3.90966187,2557.8,2557.2,4.72255625]
[1750423581848,0.36600363,2557.4,2557.3,3.91037422]
[1750423582434,0.7764,2557.7,2557.4,3.91019422]
[1750423582651,0.36611251,2557.6,2557.4,3.91019422]
[1750423582828,0.36611251,2557.5,2557.4,3.91019422]
[1750423583449,0.36611251,2557.5,2557.4,4.77346051]
[1750423583937,0.36611251,2557.5,2557.4,4.81255835]
[1750423584512,0.36611251,2557.5,2557.4,4.77346051]
[1750423584708,0.36611251,2557.5,2557.4,0.86326629]
[1750423584909,0.36611251,2557.5,2557.3,3.91025408]
[1750423585232,3.90967338,2557.8,2557.4,3.91022131]
[1750423585426,0.36615215,2557.7,2557.4,3.91022131]
[1750423585632,0.36615215,2557.6,2557.4,3.91021201]
[1750423585833,0.36615215,2557.5,2557.4,3.91021201]
[1750423586646,0.36615215,2557.5,2557.4,4.77347712]
[1750423587612,3.90970238,2557.8,2557.4,4.77347712]
[1750423587811,3.90970238,2557.8,2557.4,3.91021201]
[1750423588247,4.73245788,2557.9,2557.3,3.91029942]
[1750423588248,3.90985615,2557.7,2557.3,3.91029942]
[1750423588624,0.36619988,2557.6,2557.4,3.91020913]
[1750423588821,0.36619988,2557.5,2557.4,3.91020913]
[1750423589538,4.73253698,2557.9,2557.5,3.9100419]
[1750423591319,3.90961278,2557.8,2557.4,3.91013251]
[1750423591752,3.90961278,2557.8,2557.3,3.91028505]
[1750423592052,3.90961278,2557.8,2557.4,3.91013772]
[1750423592835,4.73254632,2557.9,2557.4,3.91013772]
[1750423593041,3.90962434,2557.8,2557.4,3.91013772]
[1750423593216,4.73253281,2557.9,2557.4,3.91013772]
[1750423593557,4.73253281,2557.9,2557.5,3.91006063]
[1750423593932,0.823,2557.9,2557.5,3.91006063]
[1750423594112,4.73248319,2557.9,2557.5,3.91006063]
[1750423594843,0.823,2557.9,2557.5,3.91006063]
[1750423595452,4.73246263,2557.9,2557.5,3.91006063]
[1750423595620,4.73246263,2557.9,2557.4,3.91014313]
[1750423596020,3.90963901,2557.8,2557.4,3.91014313]
[1750423597657,3.90993065,2557.6,2557.0,4.72236069]
[1750423597954,0.7681,2557.5,2557.1,3.91060754]
[1750423598355,4.67815241,2557.7,2557.3,3.91037134]
[1750423599227,6.41088878,2557.8,2557.4,3.91019111]
[1750423599428,5.54668721,2557.8,2557.4,3.91019111]
[1750423600229,1.637,2557.8,2557.4,3.91019111]
[1750423600464,5.54662479,2557.8,2557.4,3.91019111]
[1750423601125,5.54662479,2557.8,2557.3,3.91030341]